bitfinex/quotes_BTCUSD_20240906
["timestamp","ask_amount","ask_price","bid_price","bid_amount"]
[1725645010982,0.185309,53964.0,53960.0,0.4056]
[1725645011209,0.185319,53961.0,53960.0,0.4056]
[1725645011437,0.185314,53963.0,53960.0,0.4056]
[1725645011655,0.1,53972.0,53960.0,0.4056]
[1725645011952,0.1,53972.0,53965.0,0.370604]
[1725645012164,0.1,53972.0,53960.0,0.4056]
[1725645012165,0.470522,53978.0,53960.0,0.4056]
[1725645012410,0.185264,53977.0,53962.0,0.4152]
[1725645012659,0.185269,53976.0,53962.0,0.4152]
[1725645012890,0.3889,53986.0,53962.0,0.4152]
[1725645012891,0.185244,53983.0,53965.0,0.4115]
[1725645013121,0.370458,53988.0,53978.0,0.596759]
[1725645013122,0.370479,53985.0,53978.0,0.596759]
[1725645013372,0.185248,53982.0,53978.0,0.4115]
[1725645013596,0.370479,53985.0,53978.0,0.4115]
[1725645013597,0.18525,53981.0,53978.0,0.4115]
[1725645013848,0.370479,53985.0,53978.0,0.4115]
[1725645013849,0.185241,53984.0,53979.0,0.185256]
[1725645014324,0.370438,53991.0,53979.0,0.185256]
[1725645014325,0.185211,53993.0,53979.0,0.0037051]
[1725645014561,0.4009,54000.0,53978.0,0.5947]
[1725645014562,0.4009,54000.0,53991.0,0.3804]
[1725645014809,0.1819,54001.0,53992.0,0.185211]
[1725645014810,0.185196,53997.0,53992.0,0.185211]
[1725645015070,0.370386,53998.0,53991.0,0.3804]
[1725645015307,0.06614379,53998.0,53987.0,0.383]
[1725645015537,0.87191738,54004.0,53987.0,0.383]
[1725645015770,0.185207,53994.0,53988.0,0.185223]
[1725645015999,0.185209,53993.0,53989.0,0.185221]
[1725645016220,0.40135964,54004.0,53993.0,0.185207]
[1725645016221,0.01555964,54004.0,53993.0,0.185207]
[1725645016464,0.185193,53998.0,53993.0,0.185209]
[1725645016690,0.37037,54000.0,53990.0,0.370435]
[1725645016691,0.185196,53997.0,53990.0,0.370435]
[1725645016917,0.37037,54000.0,53993.0,0.185207]
[1725645017204,0.185196,53997.0,53992.0,0.185211]
[1725645017445,0.185196,53997.0,53987.0,0.383]
[1725645017446,0.3884,53991.0,53963.0,0.52488909]
[1725645017673,0.3884,53991.0,53962.0,0.01578317]
[1725645017674,2.253613,53979.0,53978.0,0.00163]
[1725645017910,2.28264767,53979.0,53978.0,0.00163]
[1725645018117,1.05531967,53979.0,53978.0,0.00163]
[1725645018353,0.1979,53984.0,53978.0,0.00163]
[1725645018606,0.371196,53999.0,53978.0,0.00163]
[1725645018607,0.47055774,53994.0,53979.0,0.41920477]
[1725645018862,0.000815,53999.0,53983.0,0.01]
[1725645019064,0.000815,53999.0,53988.0,0.185225]
[1725645019065,0.185193,53998.0,53988.0,0.185225]
[1725645019276,0.185193,53998.0,53984.0,0.1841]
[1725645019277,0.185227,53988.0,53984.0,0.1841]
[1725645019508,0.370439,53990.0,53984.0,0.1841]
[1725645019752,0.47055774,53991.0,53984.0,0.1841]
[1725645019982,0.185211,53993.0,53984.0,0.1841]
[1725645020207,0.37041,53995.0,53984.0,0.1841]
[1725645020656,0.000815,53999.0,53979.0,0.1952]
[1725645020657,0.370448,53989.0,53979.0,0.1952]
[1725645020885,0.185257,53979.0,53978.0,0.00163]
[1725645021134,0.555771,53979.0,53978.0,0.00163]
[1725645021812,1.02632874,53979.0,53978.0,0.00163]
[1725645022032,1.39684274,53979.0,53978.0,0.00163]
[1725645022277,1.76735674,53979.0,53978.0,0.00163]
[1725645022504,1.39684274,53979.0,53978.0,0.00163]
[1725645022754,1.76735674,53979.0,53978.0,0.00163]
[1725645023436,1.86735674,53979.0,53978.0,0.00163]
[1725645023654,0.655771,53979.0,53978.0,0.00163]
[1725645023884,0.185257,53979.0,53978.0,0.00163]
[1725645024139,1.02632874,53979.0,53978.0,0.00163]
[1725645024357,1.39684274,53979.0,53978.0,0.00163]
[1725645024617,2.81207074,53979.0,53978.0,0.00163]
[1725645025577,0.03,53977.0,53965.0,0.4697]
[1725645025806,0.03,53977.0,53958.0,0.55430836]
[1725645025807,0.555976,53959.0,53958.0,0.55430836]
[1725645026045,0.555976,53959.0,53935.0,0.001632]
[1725645026046,0.556111,53946.0,53945.0,0.3804]
[1725645026260,1.39740974,53946.0,53945.0,0.3804]
[1725645026518,1.39740974,53946.0,53935.0,0.001632]
[1725645026519,0.55612,53945.0,53944.0,0.001632]
[1725645026745,0.926867,53945.0,53944.0,0.001632]
[1725645026972,1.297614,53945.0,53944.0,0.001632]
[1725645027187,2.059061,53945.0,53944.0,0.001632]
[1725645027459,2.529808,53945.0,53944.0,0.001632]
[1725645027670,2.159061,53945.0,53944.0,0.001632]
[1725645028802,1.026867,53945.0,53944.0,0.001632]
[1725645029057,0.55612,53945.0,53944.0,0.001632]
[1725645029281,0.926867,53945.0,53944.0,0.001632]
[1725645029544,0.47055774,53951.0,53944.0,0.201132]
[1725645029761,0.47055774,53951.0,53944.0,0.001632]
[1725645029762,0.55612,53945.0,53944.0,0.001632]
[1725645030023,1.76817174,53945.0,53944.0,0.001632]
[1725645030261,1.96317174,53945.0,53944.0,0.001632]
[1725645030505,1.96317174,53945.0,53923.0,0.00162]
[1725645030506,0.85054081,53945.0,53923.0,0.00162]
[1725645030740,0.002,53946.0,53923.0,0.00162]
[1725645030741,1.98976974,53925.0,53923.0,0.00162]
[1725645030963,2.36065474,53925.0,53923.0,0.00162]
[1725645031174,3.23542474,53925.0,53923.0,0.00162]
[1725645031390,3.60630974,53925.0,53923.0,0.00162]
[1725645031617,3.23542474,53925.0,53923.0,0.00162]
[1725645031832,3.24430972,53925.0,53923.0,0.00162]
[1725645032098,3.26430972,53925.0,53923.0,0.00162]
[1725645032330,4.29073553,53925.0,53923.0,0.00162]
[1725645032620,2.656006,53924.0,53923.0,0.00162]
[1725645032875,2.406114,53924.0,53923.0,0.00162]
[1725645033103,2.35992559,53924.0,53923.0,0.00162]
[1725645033336,1.98903359,53924.0,53923.0,0.00162]
[1725645033589,1.40493359,53924.0,53923.0,0.00162]
[1725645033858,1.40905634,53924.0,53923.0,0.00162]
[1725645034325,2.20564834,53924.0,53923.0,0.00162]
[1725645035047,1.82475634,53924.0,53923.0,0.00162]
[1725645035288,1.84775634,53924.0,53923.0,0.00162]
[1725645035523,1.03816434,53924.0,53923.0,0.00162]
[1725645036741,1.40905634,53924.0,53923.0,0.00162]
[1725645038692,1.43205634,53924.0,53923.0,0.00162]
[1725645038904,2.67600608,53924.0,53923.0,0.00162]
[1725645039126,2.88010608,53924.0,53923.0,0.00162]
[1725645039348,2.90010608,53924.0,53923.0,0.00162]
[1725645039591,2.90210608,53924.0,53923.0,0.00162]
[1725645041102,3.27299808,53924.0,53923.0,0.00162]
[1725645041347,2.90010608,53924.0,53923.0,0.00162]
[1725645041579,2.88010608,53924.0,53923.0,0.00162]
[1725645041795,2.52203008,53924.0,53923.0,0.00162]
[1725645042021,2.90292208,53924.0,53923.0,0.00162]
[1725645042978,2.90092208,53924.0,53923.0,0.00162]
[1725645043626,2.90092208,53924.0,53916.0,0.001632]
[1725645043627,2.16978774,53917.0,53916.0,0.001632]
[1725645043851,2.15978774,53917.0,53916.0,0.001632]
[1725645044124,2.28227964,53917.0,53916.0,0.001632]
[1725645044601,1.8317219,53917.0,53916.0,0.001632]
[1725645044818,2.28227964,53917.0,53916.0,0.001632]
[1725645045036,2.27227964,53917.0,53916.0,0.001632]
[1725645045285,1.87833964,53917.0,53916.0,0.001632]
[1725645047171,2.87367964,53917.0,53916.0,0.001632]
[1725645047410,2.89467964,53917.0,53916.0,0.001632]
[1725645047844,1.87833964,53917.0,53916.0,0.001632]
[1725645048073,1.89033964,53917.0,53916.0,0.001632]
[1725645048345,1.88833964,53917.0,53916.0,0.001632]
[1725645048586,2.24927964,53917.0,53916.0,0.001632]
[1725645048828,2.25927964,53917.0,53916.0,0.001632]
[1725645049041,2.28227964,53917.0,53916.0,0.001632]
[1725645049262,1.90133964,53917.0,53916.0,0.001632]
[1725645049523,1.87833964,53917.0,53916.0,0.001632]
[1725645050939,2.24927964,53917.0,53916.0,0.001632]
[1725645051185,2.27227964,53917.0,53916.0,0.001632]
[1725645051406,2.01950786,53917.0,53916.0,0.001632]
[1725645051625,2.20497786,53917.0,53916.0,0.001632]
[1725645052350,2.07506254,53917.0,53916.0,0.001632]
[1725645052600,2.48806254,53917.0,53916.0,0.001632]
[1725645053059,2.85900254,53917.0,53916.0,0.001632]
[1725645053287,2.49400704,53917.0,53916.0,0.001632]
[1725645053507,2.50400704,53917.0,53916.0,0.001632]
[1725645053722,2.08100704,53917.0,53916.0,0.001632]
[1725645054382,1.68706704,53917.0,53916.0,0.001632]
[1725645054824,2.06800704,53917.0,53916.0,0.001632]
[1725645055084,2.10100704,53917.0,53916.0,0.001632]
[1725645055301,2.10100704,53917.0,53914.0,8.3e-07]
[1725645055302,1.328339,53915.0,53914.0,8.3e-07]
[1725645055565,2.070247,53915.0,53914.0,8.3e-07]
[1725645055831,1.79850765,53915.0,53914.0,8.3e-07]
[1725645056064,1.78850765,53915.0,53914.0,8.3e-07]
[1725645056966,1.77850765,53915.0,53914.0,8.3e-07]
[1725645058577,1.40755365,53915.0,53914.0,8.3e-07]
[1725645059262,1.77850765,53915.0,53914.0,8.3e-07]
[1725645059992,1.80150765,53915.0,53914.0,8.3e-07]
[1725645060191,2.17760765,53915.0,53914.0,8.3e-07]
[1725645060452,1.80150765,53915.0,53914.0,8.3e-07]
[1725645060711,1.40755365,53915.0,53914.0,8.3e-07]
[1725645061155,1.77850765,53915.0,53914.0,8.3e-07]
[1725645061366,2.97171698,53915.0,53914.0,8.3e-07]
[1725645061586,1.67954,53907.0,53906.0,0.00013]
[1725645061820,2.85939142,53907.0,53906.0,0.00013]
[1725645062080,2.10934307,53907.0,53906.0,0.00013]
[1725645062310,2.13234307,53907.0,53906.0,0.00013]
[1725645062548,2.10934307,53907.0,53906.0,0.00013]
[1725645062777,1.73833407,53907.0,53906.0,0.00013]
[1725645063012,1.36732507,53907.0,53906.0,0.00013]
[1725645063425,0.00916065,53907.0,53906.0,0.37823]
[1725645063670,0.00916065,53907.0,53906.0,1.48627]
[1725645063925,0.000816,53919.0,53911.0,0.370976]
[1725645064193,0.000816,53919.0,53912.0,0.370974]
[1725645064424,0.00922997,53918.0,53915.0,0.185475]
[1725645064687,0.000816,53919.0,53906.0,0.00213]
[1725645064688,0.000816,53919.0,53917.0,0.5586]
[1725645064950,0.000816,53919.0,53918.0,0.927332]
[1725645065213,0.000816,53919.0,53918.0,1.487932]
[1725645065429,0.000816,53924.0,53918.0,1.487932]
[1725645065430,0.000816,53924.0,53923.0,0.927247]
[1725645065660,0.000816,53924.0,53923.0,1.94249839]
[1725645065913,0.3983,53955.0,53923.0,1.94249839]
[1725645065914,0.370738,53947.0,53936.0,0.370809]
[1725645066161,0.370738,53947.0,53938.0,0.4156]
[1725645066162,0.55430836,53947.0,53938.0,0.4156]
[1725645066382,0.370722,53949.0,53938.0,0.4156]
[1725645066383,0.185382,53943.0,53938.0,0.4156]
[1725645066599,0.370748,53945.0,53938.0,0.4156]
[1725645066836,0.38025616,53942.0,53938.0,0.4156]
[1725645067092,0.370671,53957.0,53938.0,0.4156]
[1725645067093,0.88682542,53939.0,53938.0,0.4156]
[1725645067313,1.25761442,53939.0,53938.0,0.4156]
[1725645067558,1.26700276,53939.0,53938.0,0.4156]
[1725645067999,0.89621376,53939.0,53938.0,0.4156]
[1725645068447,0.00938834,53939.0,53938.0,0.4156]
[1725645068692,0.370749,53945.0,53938.0,0.4156]
[1725645068932,0.00943544,53939.0,53938.0,0.4156]
[1725645069179,0.185385,53942.0,53938.0,0.4156]
[1725645069417,0.19487968,53939.0,53938.0,0.4156]
[1725645069656,0.185382,53943.0,53938.0,0.4156]
[1725645070147,0.185387,53941.0,53938.0,0.4156]
[1725645070379,0.19488892,53942.0,53938.0,0.4156]
[1725645070622,0.33064242,53944.0,53938.0,0.4156]
[1725645070623,0.00949176,53940.0,53938.0,0.4156]
[1725645071080,0.185394,53939.0,53938.0,0.4156]
[1725645071332,0.8963111,53939.0,53938.0,0.4156]
[1725645071580,1.2671001,53939.0,53938.0,0.4156]
[1725645072311,0.8963111,53939.0,53938.0,0.4156]
[1725645072765,0.56566868,53939.0,53938.0,0.4156]
[1725645073485,1.2671001,53939.0,53938.0,0.4156]
[1725645073930,0.00948568,53939.0,53938.0,0.4156]
[1725645074356,0.33064242,53944.0,53938.0,0.4156]
[1725645074580,0.00948568,53939.0,53938.0,0.4156]
[1725645074834,0.44656097,53949.0,53938.0,0.4156]
[1725645075089,0.00948568,53939.0,53938.0,0.4156]
[1725645075332,0.88682542,53939.0,53938.0,0.4156]
[1725645075544,1.26742701,53939.0,53938.0,0.4156]
[1725645076016,0.92704,53935.0,53934.0,1.6755]
[1725645076255,0.185408,53935.0,53934.0,0.4002]
[1725645076476,0.19514331,53935.0,53934.0,0.4002]
[1725645076695,0.93677531,53935.0,53934.0,0.4002]
[1725645076929,0.56595931,53935.0,53934.0,0.4002]
[1725645077389,0.19514331,53935.0,53934.0,0.4002]
[1725645077671,0.56595931,53935.0,53934.0,0.4002]
[1725645077900,0.00973531,53935.0,53934.0,0.4002]
[1725645078399,0.38655837,53942.0,53934.0,0.4002]
[1725645078400,0.370696,53953.0,53940.0,0.5985]
[1725645078621,0.00082,53973.0,53950.0,0.4066]
[1725645078622,0.33064242,53971.0,53950.0,0.4066]
[1725645078926,0.00082,53973.0,53957.0,0.4066]
[1725645078927,0.185292,53969.0,53957.0,0.4066]
[1725645079177,0.370584,53969.0,53959.0,0.4123]
[1725645079405,0.370584,53969.0,53958.0,0.1985058]
[1725645079406,0.185292,53969.0,53961.0,0.4123]
[1725645079632,0.370565,53972.0,53962.0,0.0037058]
[1725645079857,0.00082,53973.0,53962.0,0.0037058]
[1725645079858,0.00082,53973.0,53963.0,0.4123]
[1725645080109,0.00082,53973.0,53960.0,0.1948]
[1725645080110,0.00082,53973.0,53964.0,0.40680561]
[1725645080589,0.00082,53973.0,53964.0,0.4031]
[1725645081061,0.185286,53971.0,53964.0,0.4031]
[1725645081325,0.370572,53971.0,53964.0,0.4031]
[1725645081563,0.185288,53970.0,53964.0,0.4031]
[1725645081815,0.185291,53969.0,53964.0,0.4031]
[1725645082047,0.00082,53973.0,53965.0,0.40350572]
[1725645082298,0.186099,53973.0,53967.0,0.3998]
[1725645082578,0.00082,53973.0,53969.0,0.4003]
[1725645082794,0.00082,53973.0,53970.0,0.00370521]
[1725645083025,0.00082,53973.0,53972.0,0.4003]
[1725645083973,0.186097,53973.0,53972.0,0.4003]
[1725645084456,0.01013428,53973.0,53972.0,0.4003]
[1725645084685,0.19541128,53973.0,53972.0,0.4003]
[1725645085156,0.01013428,53973.0,53972.0,0.4003]
[1725645085377,0.00082,53973.0,53972.0,1.54855836]
[1725645085610,0.00082,53973.0,53972.0,0.771781]
[1725645085839,0.00082,53973.0,53972.0,0.5865]
[1725645086062,0.186097,53973.0,53972.0,0.5865]
[1725645086517,0.00082,53973.0,53972.0,0.5865]
[1725645087499,0.927207,53973.0,53972.0,0.4003]
[1725645087717,0.927207,53973.0,53962.0,0.3972]
[1725645087718,0.555936,53963.0,53962.0,0.3972]
[1725645087963,1.297184,53963.0,53962.0,0.3972]
[1725645088400,0.92661,53960.0,53959.0,0.4697]
[1725645088617,0.92661,53960.0,53957.0,0.4022]
[1725645088618,0.185329,53958.0,53957.0,0.4022]
[1725645088870,0.00835913,53960.0,53957.0,0.4022]
[1725645089123,0.1,53972.0,53957.0,0.4022]
[1725645089124,0.185329,53958.0,53957.0,0.4022]
[1725645089353,0.555987,53958.0,53957.0,0.4022]
[1725645089584,0.556018,53955.0,53954.0,0.3798]
[1725645090043,0.00824136,53955.0,53954.0,0.3798]
[1725645090295,0.185339,53955.0,53954.0,0.3798]
[1725645090562,0.00830234,53955.0,53954.0,0.3798]
[1725645090822,0.00830234,53955.0,53954.0,0.935829]
[1725645091057,0.10082,53973.0,53954.0,0.935829]
[1725645091058,0.185322,53961.0,53954.0,0.935829]
[1725645091269,0.00924844,53960.0,53954.0,0.935826]
[1725645091500,0.19457144,53960.0,53955.0,0.185339]
[1725645091731,0.19457144,53960.0,53954.0,0.3798]
[1725645091732,0.00924844,53960.0,53954.0,0.750485]
[1725645091943,0.00924844,53960.0,53951.0,0.1949]
[1725645091944,0.185326,53959.0,53955.0,0.3945]
[1725645092172,0.185321,53961.0,53955.0,0.3945]
[1725645092406,0.00926474,53958.0,53955.0,0.3945]
[1725645092620,0.370647,53960.0,53955.0,0.3945]
[1725645092852,0.00922413,53957.0,53955.0,0.3945]
[1725645093101,0.370611,53965.0,53955.0,0.3945]
[1725645093102,0.00921603,53956.0,53955.0,0.3945]
[1725645093342,0.56522403,53956.0,53955.0,0.3945]
[1725645093567,0.556008,53956.0,53955.0,0.3945]
[1725645093803,0.56518265,53956.0,53955.0,0.3945]
[1725645094087,0.00917465,53956.0,53955.0,0.3945]
[1725645095056,0.370651,53960.0,53955.0,0.3945]
[1725645095057,0.33064242,53980.0,53961.0,0.185318]
[1725645095279,0.381,53982.0,53962.0,1.2753]
[1725645095280,0.185312,53963.0,53962.0,1.2753]
[1725645095498,0.555936,53963.0,53962.0,1.2753]
[1725645095723,0.370624,53963.0,53962.0,1.2753]
[1725645095931,0.555936,53963.0,53962.0,1.2753]
[1725645096161,0.370587,53969.0,53962.0,1.2753]
[1725645096384,1.25720242,53963.0,53962.0,1.2753]
[1725645096622,0.185343,53954.0,53949.0,0.399]
[1725645096894,0.185355,53951.0,53949.0,0.399]
[1725645097075,0.0091142,53954.0,53953.0,0.556039]
[1725645097294,0.00908163,53950.0,53949.0,0.955074]
[1725645097501,0.185329,53958.0,53952.0,0.185348]
[1725645097856,0.370614,53965.0,53952.0,0.185348]
[1725645097857,0.185302,53966.0,53953.0,0.18730644]
[1725645097863,0.00920267,53957.0,53954.0,0.3841]
[1725645098085,0.185307,53965.0,53960.0,0.185322]
[1725645098312,0.1,53964.0,53960.0,0.185322]
[1725645098531,0.1,53964.0,53957.0,1.2753]
[1725645098532,0.29457825,53964.0,53959.0,0.185325]
[1725645098733,0.28531,53964.0,53959.0,0.185325]
[1725645098936,0.00926015,53963.0,53960.0,0.185321]
[1725645099170,0.00926015,53963.0,53962.0,0.185315]
[1725645099446,0.33146242,53973.0,53962.0,0.185315]
[1725645099447,0.00082,53973.0,53964.0,0.3941]
[1725645099666,0.00082,53973.0,53966.0,0.3841]
[1725645099869,0.00082,53973.0,53968.0,0.370584]
[1725645100079,0.00082,53973.0,53972.0,0.185281]
[1725645100320,0.00082,53973.0,53972.0,1.123543]
[1725645100535,0.00082,53973.0,53972.0,1.72486089]
[1725645100757,0.00082,53973.0,53972.0,2.11842289]
[1725645100996,0.010815,54009.0,53984.0,0.370479]
[1725645101218,0.010815,54009.0,53977.0,0.01]
[1725645101219,0.370393,53997.0,53988.0,0.185223]
[1725645101443,0.370393,53997.0,53985.0,0.57140406]
[1725645101444,0.22486005,54004.0,53990.0,0.4006]
[1725645101713,0.185205,53995.0,53990.0,0.4006]
[1725645101921,0.370358,54002.0,53990.0,0.4006]
[1725645102355,0.32946122,54004.0,53990.0,0.4006]
[1725645102356,0.18521,53993.0,53990.0,0.4006]
[1725645102570,0.370412,53994.0,53990.0,0.4006]
[1725645102775,0.185206,53994.0,53990.0,0.4006]
[1725645103009,0.370354,54003.0,53991.0,0.00370396]
[1725645103252,0.370354,54003.0,53996.0,0.185196]
[1725645103253,0.185178,54003.0,53996.0,0.185196]
[1725645103464,0.18518,54002.0,53998.0,0.3751]
[1725645103670,0.370332,54006.0,53998.0,0.759792]
[1725645103878,0.740663,54006.0,53998.0,0.5746]
[1725645104083,0.370331,54006.0,53998.0,0.5746]
[1725645104293,0.371129,54009.0,53998.0,0.944984]
[1725645104543,0.000815,54009.0,53998.0,1.870944]
[1725645104968,0.000815,54009.0,53998.0,1.130176]
[1725645105407,0.185162,54007.0,53998.0,1.50056]
[1725645105603,0.370322,54007.0,53998.0,1.50056]
[1725645105811,0.185168,54005.0,53998.0,1.130176]
[1725645106021,0.000815,54009.0,53998.0,2.97061239]
[1725645106231,0.18597,54009.0,53998.0,2.77586]
[1725645106432,0.185169,54005.0,53998.0,2.405476]
[1725645106675,0.185165,54006.0,53998.0,2.405476]
[1725645107019,0.370336,54005.0,53998.0,2.035092]
[1725645107212,0.370336,54005.0,53998.0,1.8499]
[1725645107213,0.740676,54005.0,53998.0,1.8499]
[1725645107422,0.370322,54008.0,53998.0,2.035092]
[1725645107663,0.000815,54009.0,53997.0,1.2753]
[1725645107664,0.01005832,53999.0,53997.0,1.2753]
[1725645107864,0.000815,53999.0,53997.0,1.2753]
[1725645108085,0.185192,53998.0,53997.0,1.2753]
[1725645108297,0.00922305,53998.0,53997.0,1.460495]
[1725645108501,0.00922305,53998.0,53997.0,2.219185]
[1725645108939,0.000815,53999.0,53997.0,1.6636]
[1725645109285,0.00930615,53998.0,53997.0,1.848793]
[1725645109551,0.00930615,53998.0,53997.0,2.219183]
[1725645109767,0.000815,53999.0,53997.0,1.6636]
[1725645109983,0.000815,53999.0,53997.0,1.848794]
[1725645110188,0.00931426,53998.0,53997.0,1.848794]
[1725645110874,0.00931426,53998.0,53997.0,2.219184]
[1725645111284,0.000815,53999.0,53998.0,0.555576]
[1725645111761,0.000815,53999.0,53998.0,0.92596]
[1725645112012,0.000815,53999.0,53998.0,1.296344]
[1725645112250,0.000815,53999.0,53998.0,0.92596]
[1725645112907,0.000815,53999.0,53998.0,2.38686]
[1725645113118,0.000815,53999.0,53998.0,1.4609]
[1725645113552,0.19540452,53999.0,53998.0,1.4609]
[1725645113785,0.01021652,53999.0,53998.0,1.4609]
[1725645114031,0.56578152,53999.0,53998.0,1.2753]
[1725645114263,0.93615852,53999.0,53998.0,1.2753]
[1725645114489,0.01021652,53999.0,53998.0,1.2753]
[1725645114934,0.000815,53999.0,53998.0,1.2753]
[1725645115182,0.000815,53999.0,53985.0,0.4697]
[1725645115183,0.555699,53986.0,53985.0,0.4697]
[1725645115407,0.555699,53986.0,53976.0,0.4118]
[1725645115408,0.70696122,53986.0,53976.0,0.4118]
[1725645115617,0.70696122,53986.0,53974.0,0.55430836]
[1725645115618,0.18527,53975.0,53974.0,0.55430836]
[1725645115824,0.32946122,53978.0,53973.0,0.4164]
[1725645116069,0.555822,53974.0,53973.0,0.4164]
[1725645116305,0.185274,53974.0,53973.0,0.4164]
[1725645116527,0.19379844,53974.0,53973.0,0.4164]
[1725645116757,0.185274,53974.0,53973.0,0.4164]
[1725645117048,0.19379844,53974.0,53973.0,0.4164]
[1725645117263,0.56434644,53974.0,53973.0,0.4164]
[1725645117474,0.926405,53972.0,53971.0,1.2753]
[1725645117684,0.555843,53972.0,53971.0,1.2753]
[1725645117916,0.00889863,53972.0,53971.0,1.2753]
[1725645118124,0.00889863,53972.0,53971.0,1.460584]
[1725645118359,0.00889863,53972.0,53971.0,1.2753]
[1725645118572,0.1941534,53972.0,53971.0,1.2753]
[1725645119009,0.185284,53971.0,53970.0,1.2753]
[1725645119490,0.1941483,53971.0,53970.0,1.2753]
[1725645120159,0.0088643,53971.0,53970.0,1.460588]
[1725645120378,0.370542,53975.0,53970.0,1.2753]
[1725645120625,0.370542,53975.0,53961.0,0.4797]
[1725645120626,0.00921845,53971.0,53966.0,1.2753]
[1725645120839,0.32975526,53976.0,53966.0,1.2753]
[1725645121056,0.00921363,53970.0,53966.0,1.2753]
[1725645121269,0.185292,53969.0,53966.0,1.2753]
[1725645121492,0.185295,53968.0,53966.0,1.2753]
[1725645121708,0.370563,53972.0,53966.0,1.2753]
[1725645121709,0.18529,53970.0,53966.0,1.460599]
[1725645121921,0.18529,53970.0,53966.0,1.2753]
[1725645121922,0.185289,53970.0,53966.0,1.2753]
[1725645122153,0.185289,53970.0,53966.0,1.460599]
[1725645122419,0.19447583,53969.0,53966.0,1.460599]
[1725645122656,0.00918383,53969.0,53968.0,0.555883]
[1725645122878,0.00918383,53969.0,53968.0,0.185294]
[1725645123121,0.32975526,53976.0,53966.0,1.2753]
[1725645123378,0.0153652,53983.0,53963.0,0.370619]
[1725645123379,0.1831,53970.0,53963.0,1.2753]
[1725645123611,0.185306,53965.0,53961.0,1.460618]
[1725645123857,0.185315,53962.0,53961.0,1.2753]
[1725645124098,0.185315,53962.0,53955.0,0.4697]
[1725645124099,0.556008,53956.0,53955.0,1.2753]
[1725645124337,0.556008,53956.0,53954.0,0.598028]
[1725645124338,0.556008,53956.0,53954.0,0.001628]
[1725645124339,0.926697,53955.0,53954.0,0.001628]
[1725645124781,0.926697,53955.0,53932.0,0.4137]
[1725645124782,0.781092,53954.0,53932.0,0.4137]
[1725645124789,0.4104,53954.0,53944.0,0.55430836]
[1725645125022,0.4104,53954.0,53932.0,0.4137]
[1725645125023,0.370779,53941.0,53932.0,0.784536]
[1725645125269,0.002,53958.0,53927.0,0.2058]
[1725645125270,0.22503686,53933.0,53927.0,0.1958]
[1725645125510,0.22503686,53933.0,53924.0,0.00163]
[1725645125511,0.22503686,53928.0,53926.0,0.3853]
[1725645126025,0.4115,53939.0,53926.0,0.3853]
[1725645126026,0.22503686,53933.0,53931.0,0.185422]
[1725645126290,0.370846,53931.0,53926.0,0.3853]
[1725645126537,0.370846,53931.0,53924.0,0.00163]
[1725645126538,0.22503686,53928.0,53924.0,0.00163]
[1725645127010,0.185442,53925.0,53924.0,0.00163]
[1725645127264,0.556327,53925.0,53924.0,0.00163]
[1725645127526,0.93613374,53925.0,53924.0,0.00163]
[1725645127748,0.56524874,53925.0,53924.0,0.00163]
[1725645127976,0.93613374,53925.0,53924.0,0.00163]
[1725645128502,1.13123374,53925.0,53924.0,0.00163]
[1725645128742,0.93613374,53925.0,53924.0,0.00163]
[1725645128991,0.00892174,53925.0,53924.0,0.593476]
[1725645129468,0.22503686,53930.0,53924.0,0.40803]
[1725645129752,0.22503686,53930.0,53929.0,0.185428]
[1725645129995,0.22503686,53934.0,53927.0,0.1935]
[1725645130242,0.22503686,53934.0,53930.0,0.370847]
[1725645130479,0.22503686,53939.0,53927.0,0.38825239]
[1725645130726,0.1958,53951.0,53928.0,0.370863]
[1725645130727,0.22503686,53935.0,53928.0,0.370863]
[1725645130964,0.22503686,53935.0,53930.0,0.185423]
[1725645131214,0.01572911,53949.0,53927.0,0.1935]
[1725645131215,0.22503686,53940.0,53932.0,0.370836]
[1725645131451,0.22503686,53945.0,53935.0,0.3919]
[1725645131683,0.185379,53944.0,53936.0,0.37451133]
[1725645131916,0.41041186,53945.0,53937.0,0.370802]
[1725645132366,0.370749,53945.0,53938.0,0.1891044]
[1725645132371,0.33010147,53947.0,53939.0,0.185394]
[1725645132372,0.370759,53944.0,53939.0,0.185394]
[1725645132622,0.33010147,53953.0,53946.0,0.185369]
[1725645132880,0.5815,53959.0,53938.0,0.370793]
[1725645132881,0.33010147,53958.0,53947.0,0.00370692]
[1725645133103,0.33010147,53958.0,53945.0,0.370743]
[1725645133104,0.370681,53955.0,53946.0,0.370738]
[1725645133313,0.370666,53957.0,53949.0,0.370719]
[1725645133521,0.185341,53955.0,53950.0,0.40140667]
[1725645133769,0.370635,53962.0,53951.0,0.185352]
[1725645133770,0.370632,53962.0,53951.0,0.185352]
[1725645134002,0.33010147,53958.0,53950.0,0.3977]
[1725645134478,0.33010147,53958.0,53953.0,0.370692]
[1725645134756,0.37055,53974.0,53950.0,0.3977]
[1725645134757,0.33010147,53968.0,53958.0,0.370657]
[1725645134993,0.01,53984.0,53954.0,0.00370633]
[1725645134994,0.33010147,53978.0,53959.0,0.82745796]
[1725645135231,0.370563,53972.0,53964.0,0.370614]
[1725645135463,0.370529,53977.0,53966.0,0.370603]
[1725645135464,0.185279,53973.0,53966.0,0.370603]
[1725645135700,0.185289,53970.0,53966.0,0.185301]
[1725645135940,0.18529,53970.0,53962.0,0.370629]
[1725645136171,0.185284,53972.0,53967.0,0.185297]
[1725645136407,0.185285,53971.0,53967.0,0.185297]
[1725645136640,0.185285,53971.0,53964.0,0.370613]
[1725645136641,0.70065947,53973.0,53968.0,0.185294]
[1725645136874,0.185285,53971.0,53964.0,0.370613]
[1725645137112,0.70065947,53973.0,53966.0,0.370603]
[1725645137113,0.51538147,53973.0,53966.0,0.370603]
[1725645137350,0.51538147,53973.0,53968.0,0.185293]